bitfinex/quotes_SOLUSD_20260310
["timestamp","ask_amount","ask_price","bid_price","bid_amount"]
[1773139957928,4.04137678,87.24,87.211,1.53025972]
[1773139958131,1.50369463,87.229,87.203,1.53025972]
[1773139958826,11.46392928,87.231,87.205,1.53025972]
[1773139959139,1.50248686,87.229,87.204,11.46736388]
[1773139959655,1.50248686,87.229,87.205,1.53025972]
[1773139961644,11.46420874,87.228,87.205,1.53025972]
[1773139961829,4.04137678,87.22,87.198,1.53025972]
[1773139962343,1.50011401,87.227,87.198,1.53025972]
[1773139962845,4.04137678,87.22,87.198,1.53025972]
[1773139963141,4.04137678,87.22,87.191,11.46907364]
[1773139963142,1.49782192,87.219,87.191,11.46907364]
[1773139963844,4.04137678,87.21,87.186,11.4697309]
[1773139964045,4.04137678,87.21,87.172,28.6788309]
[1773139964046,1.49782192,87.209,87.181,11.4703835]
[1773139964252,1.49782192,87.209,87.182,1.53025972]
[1773139964552,4.04137678,87.21,87.182,1.53025972]
[1773139964749,5.53806591,87.21,87.182,1.53025972]
[1773139966144,11.46670641,87.209,87.182,1.53025972]
[1773139967740,4.04137678,87.2,87.176,1.53025972]
[1773139968130,11.46802142,87.199,87.176,1.53025972]
[1773139968749,5.5336823,87.22,87.181,1.53025972]
[1773139968930,4.04137678,87.21,87.181,1.53025972]
[1773139970332,4.04137678,87.21,87.177,40.14820422]
[1773139970333,11.46647398,87.211,87.183,1.57133311]
[1773139971449,1.48808389,87.218,87.185,1.57133311]
[1773139974359,1.48504839,87.216,87.187,1.57133311]
[1773139976558,11.46591756,87.215,87.189,1.57133311]
[1773139976757,12.94900281,87.215,87.189,1.57133311]
[1773139976956,1.48308525,87.214,87.189,1.57133311]
[1773139978042,4.04137678,87.21,87.189,1.57133311]
[1773139979564,11.46670641,87.209,87.189,1.57133311]
[1773139980762,1.47928345,87.208,87.184,11.46990928]
[1773139981860,11.46696939,87.207,87.182,1.57133311]
[1773139982067,1.47836895,87.206,87.182,1.57133311]
[1773139982562,1.47746343,87.199,87.175,11.47114518]
[1773139983061,1.47746343,87.199,87.176,1.57133311]
[1773139984965,12.94292846,87.198,87.176,1.57133311]
[1773139985652,11.46815293,87.198,87.176,1.57133311]
[1773139985982,1.47389566,87.189,87.141,1.66428377]
[1773139986149,4.04137678,87.18,87.141,1.66428377]
[1773139986847,40.13853527,87.198,87.163,1.66428377]
[1773139986848,11.46815293,87.198,87.163,1.66428377]
[1773139987077,11.46815293,87.198,87.171,1.66428377]
[1773139988344,1.47134708,87.229,87.191,1.66428377]
[1773139989766,1.47134708,87.229,87.192,11.4689421]
[1773139989958,1.47051285,87.227,87.193,1.66428377]
[1773139990565,4.04137678,87.22,87.193,1.66428377]
[1773139990771,1.46968636,87.219,87.193,1.66428377]
[1773139996876,1.45105424,87.217,87.193,1.66428377]
[1773139998879,1.44423253,87.211,87.188,1.66428377]
[1773139999078,11.46657493,87.21,87.188,1.66428377]
[1773139999378,1.44087823,87.217,87.191,1.66428377]
[1773139999584,4.04137678,87.28,87.211,1.66428377]
[1773139999585,1.44087823,87.252,87.211,1.66428377]
[1773139999783,1.44087823,87.252,87.21,4.04137678]
[1773139999784,1.44087823,87.249,87.214,1.66428377]
[1773140000081,1.44087823,87.229,87.199,1.66428377]
[1773140000956,11.46420874,87.228,87.201,1.66428377]
[1773140002269,1.43107464,87.237,87.203,1.66428377]
[1773140004581,4.04137678,87.23,87.205,1.66428377]
[1773140004775,1.42471322,87.235,87.205,1.66428377]
[1773140005164,1.42158502,87.229,87.205,1.66428377]
[1773140005360,4.04137678,87.23,87.205,1.66428377]
[1773140005577,4.04109102,87.23,87.205,1.66428377]
[1773140005780,1.42158502,87.235,87.205,1.66428377]
[1773140005972,4.04109102,87.23,87.205,1.66428377]
[1773140006183,1.42158502,87.235,87.205,1.66428377]
[1773140007082,4.04109102,87.23,87.206,11.46710088]
[1773140007272,4.04109102,87.23,87.207,1.66428377]
[1773140008779,11.46407731,87.229,87.207,1.66428377]
[1773140009079,11.46407731,87.229,87.201,1.66428377]
[1773140009080,1.41240727,87.228,87.201,1.66428377]
[1773140010461,11.46407731,87.229,87.203,1.66428377]
[1773140011583,11.46355163,87.233,87.205,1.66428377]
[1773140011978,12.86713075,87.233,87.205,1.66428377]
[1773140012167,1.40069447,87.249,87.211,1.66428377]
[1773140012367,4.04109102,87.24,87.211,1.66428377]
[1773140012767,1.40069447,87.243,87.211,1.66428377]
[1773140013189,4.04109102,87.24,87.211,1.66428377]
[1773140013393,5.43893276,87.24,87.211,1.66428377]
[1773140013991,12.85778402,87.239,87.212,11.46631197]
[1773140014186,1.39223275,87.238,87.208,11.46674583]
[1773140014494,1.39223275,87.238,87.209,1.59974225]
[1773140016095,11.463026,87.237,87.211,1.59974225]
[1773140016276,1.39223275,87.238,87.211,1.59974225]
[1773140016681,11.46189773,87.246,87.211,1.59974225]
[1773140017370,12.84596653,87.246,87.211,1.59974225]
[1773140017781,4.04109102,87.24,87.211,1.59974225]
[1773140017983,4.04109102,87.23,87.211,1.59974225]
[1773140018903,11.46407731,87.229,87.211,1.59974225]
[1773140019191,12.84549147,87.229,87.206,11.46710088]
[1773140019398,12.84549147,87.229,87.207,1.59974225]
[1773140020381,11.46407731,87.229,87.207,1.59974225]
[1773140020587,11.46309555,87.237,87.211,1.59974225]
[1773140021415,11.46276321,87.239,87.213,1.59974225]
[1773140025083,1.36610267,87.238,87.213,1.59974225]
[1773140025602,1.36610267,87.238,87.214,11.46604902]
[1773140026793,1.36610267,87.238,87.215,1.59974225]
[1773140028303,4.04109102,87.23,87.21,11.46655231]
[1773140028513,1.35647412,87.235,87.211,1.59974225]
[1773140030288,1.35647412,87.235,87.212,1.49379902]
[1773140030795,1.35647412,87.235,87.213,11.4661805]
[1773140031003,12.81295132,87.234,87.214,1.49379902]
[1773140031201,12.8106812,87.234,87.214,1.49379902]
[1773140033212,1.34282114,87.24,87.214,1.49379902]
[1773140033514,1.34282114,87.239,87.211,1.49379902]
[1773140036417,1.33633719,87.237,87.211,1.49379902]
[1773140036917,1.33633719,87.237,87.211,11.46636955]
[1773140037116,1.33633719,87.237,87.212,1.49379902]
[1773140038816,1.33213976,87.235,87.207,12.96072647]
[1773140039018,1.33213976,87.235,87.208,1.49379902]
[1773140042724,11.46342022,87.234,87.208,1.49379902]
[1773140042914,1.32402208,87.229,87.204,1.49379902]
[1773140045020,1.31819809,87.227,87.206,1.46091361]
[1773140046020,1.31629984,87.219,87.191,1.46091361]
[1773140047824,12.77808454,87.218,87.194,1.46091361]
[1773140049627,1.30894,87.217,87.194,1.46091361]
[1773140052420,1.30894,87.217,87.195,12.92946111]
[1773140052815,4.04109102,87.21,87.182,1.46091361]
[1773140055719,12.76739127,87.216,87.184,1.46091361]
[1773140055926,11.46578609,87.216,87.184,1.46091361]
[1773140056130,12.76368186,87.216,87.184,1.46091361]
[1773140056437,1.2960822,87.215,87.184,1.46091361]
[1773140058036,1.29427247,87.219,87.186,1.46091361]
[1773140058242,12.75802435,87.218,87.191,1.46091361]
[1773140058741,1.29250118,87.229,87.191,1.46091361]
[1773140059310,1.29073899,87.227,87.191,1.46091361]
[1773140059710,4.04109102,87.22,87.191,1.46091361]
[1773140059938,1.29073899,87.219,87.191,1.46091361]
[1773140060131,11.46552317,87.218,87.193,1.46091361]
[1773140060638,4.04109102,87.22,87.193,1.46091361]
[1773140061535,11.46539171,87.219,87.193,1.46091361]
[1773140061730,11.46491737,87.223,87.193,1.46091361]
[1773140061932,11.464319,87.228,87.193,1.46091361]
[1773140062530,11.464319,87.228,87.194,11.46867903]
[1773140062732,1.28560676,87.227,87.195,1.46091361]
[1773140062933,5.32669778,87.22,87.195,1.46091361]
[1773140064540,11.46539171,87.219,87.196,11.46841598]
[1773140064744,11.46489761,87.223,87.197,1.46091361]
[1773140066924,1.27904952,87.223,87.198,11.46815293]
[1773140067123,1.27904952,87.223,87.199,1.46091361]
[1773140067451,4.0415393,87.22,87.199,1.46091361]
[1773140067644,1.27904952,87.223,87.199,1.46091361]
[1773140068924,1.27587462,87.219,87.201,1.46091361]
[1773140072049,1.27124122,87.217,87.201,1.46091361]
[1773140075957,1.27124122,87.217,87.202,11.46762688]
[1773140076249,1.26384758,87.222,87.203,1.51386523]
[1773140076443,1.26242283,87.227,87.203,1.51386523]
[1773140076948,12.72686055,87.227,87.205,1.51386523]
[1773140077335,12.72545133,87.227,87.205,1.51386523]
[1773140078050,1.26101361,87.226,87.205,1.51386523]
[1773140079344,1.25822794,87.224,87.205,1.51386523]
[1773140082340,4.0415393,87.22,87.205,1.51386523]
[1773140082947,1.25418588,87.222,87.205,1.51386523]
[1773140088961,5.28679205,87.22,87.205,1.51386523]
[1773140089271,11.46512881,87.221,87.161,40.15557416]
[1773140089272,1.53821009,87.209,87.161,40.15557416]
[1773140089471,4.0415393,87.19,87.161,40.15557416]
[1773140089773,40.12795083,87.221,87.152,11.47420598]
[1773140089774,1.53821009,87.179,87.152,11.47420598]
[1773140090074,4.0415393,87.18,87.152,11.47420598]
[1773140090279,5.57974939,87.19,87.152,40.15972094]
[1773140090447,5.57974939,87.19,87.16,4.0415393]
[1773140090647,11.46933672,87.189,87.15,4.0415393]
[1773140091243,5.57974939,87.19,87.151,1.43819942]
[1773140091443,11.46933672,87.189,87.151,1.43819942]
[1773140091650,13.00754681,87.189,87.151,1.43819942]
[1773140091850,1.53821009,87.188,87.151,1.43819942]
[1773140092255,11.46888894,87.193,87.161,1.43819942]
[1773140092648,1.53821009,87.193,87.163,1.43819942]
[1773140093063,4.0415393,87.19,87.163,1.43819942]
[1773140093854,11.46933672,87.189,87.165,1.43819942]
[1773140094059,1.53821009,87.188,87.165,1.43819942]
[1773140097473,1.53821009,87.188,87.166,11.47236307]
[1773140097963,1.53821009,87.186,87.167,1.43819942]
[1773140099667,1.53821009,87.196,87.169,1.43819942]
[1773140100462,4.0415393,87.19,87.169,1.43819942]
[1773140100663,1.53821009,87.189,87.169,1.43819942]
[1773140100852,1.53821009,87.179,87.158,1.43819942]
[1773140101779,1.53821009,87.179,87.159,11.47328445]
[1773140102083,1.53821009,87.177,87.155,11.4737914]
[1773140102370,1.53821009,87.169,87.147,1.43819942]
[1773140103866,1.50195441,87.159,87.142,1.53036685]
[1773140104349,1.50195441,87.168,87.142,1.53036685]
[1773140105668,1.50195441,87.157,87.137,13.00653069]
[1773140105875,1.50195441,87.157,87.137,1.53036685]
[1773140106552,1.50195441,87.157,87.138,13.00641633]
[1773140106772,1.50195441,87.157,87.132,11.47672911]
[1773140107171,1.50195441,87.157,87.133,1.53036685]
[1773140107878,1.50195441,87.157,87.135,1.53036685]
[1773140109277,1.50195441,87.157,87.137,1.53036685]
[1773140112558,3.69383402,87.188,87.13,4.0415393]
[1773140112559,3.69383402,87.188,87.138,11.47604948]
[1773140112765,1.50195441,87.185,87.161,1.53036685]
[1773140113760,1.50195441,87.185,87.161,13.00335954]
[1773140113982,1.50195441,87.185,87.162,1.53036685]
[1773140114785,1.50195441,87.183,87.162,1.53036685]
[1773140115094,1.50195441,87.183,87.17,4.0415393]
[1773140115264,1.50195441,87.206,87.171,1.53036685]
[1773140115464,1.50195441,87.206,87.18,5.57190615]
[1773140116168,1.50195441,87.206,87.18,4.0415393]
[1773140116485,1.50195441,87.206,87.181,1.53036685]
[1773140116979,1.50195441,87.217,87.191,1.53036685]
[1773140117166,1.50195441,87.217,87.2,4.0415393]
[1773140117366,1.50195441,87.217,87.196,1.53036685]
[1773140117967,1.50195441,87.228,87.201,1.53036685]
[1773140119287,1.50195441,87.226,87.201,1.53036685]
[1773140119460,1.50195441,87.226,87.203,1.53036685]
[1773140120666,12.96584472,87.231,87.203,1.53036685]
[1773140120865,1.50195441,87.23,87.203,1.53036685]
[1773140121194,1.50195441,87.229,87.203,1.53036685]
[1773140121366,1.50195441,87.229,87.205,1.53036685]
[1773140121568,1.50195441,87.227,87.205,1.53036685]
[1773140122966,1.50195441,87.227,87.2,11.46787531]
[1773140123188,1.50195441,87.227,87.201,1.53036685]
[1773140124589,1.50195441,87.225,87.201,1.53036685]
[1773140125587,1.50195441,87.223,87.201,1.53036685]
[1773140125887,1.50195441,87.223,87.202,11.46762688]
[1773140126087,1.50195441,87.228,87.203,1.53036685]
[1773140128172,11.46420495,87.229,87.205,1.53036685]
[1773140128666,1.50195441,87.228,87.205,1.53036685]
[1773140128866,1.50195441,87.228,87.199,12.99831029]
[1773140129090,1.50195441,87.228,87.2,1.53036685]
[1773140133599,1.44992719,87.226,87.2,1.53036685]
[1773140134201,1.44992719,87.226,87.202,1.46791033]
[1773140136491,1.44992719,87.226,87.203,11.46749538]
[1773140136695,1.44992719,87.226,87.204,1.46791033]
[1773140137881,11.46460303,87.225,87.204,1.46791033]
[1773140139378,1.44992719,87.239,87.206,1.46791033]
[1773140141222,1.44992719,87.237,87.208,1.46791033]
[1773140142592,1.44992719,87.219,87.2,1.46791033]
[1773140142810,1.44992719,87.219,87.187,1.46791033]
[1773140145198,11.46539171,87.219,87.189,1.46791033]
[1773140145402,4.04115415,87.23,87.201,1.46791033]
[1773140146300,1.44992719,87.23,87.201,1.46791033]
[1773140146497,1.44992719,87.229,87.201,1.46791033]
[1773140147284,1.44992719,87.219,87.201,1.46791033]
[1773140149291,11.46506716,87.222,87.203,1.43207859]
[1773140150090,12.91763331,87.222,87.203,1.43207859]
[1773140151095,1.45256615,87.221,87.203,1.43207859]
[1773140153808,12.91782641,87.22,87.203,1.43207859]
[1773140154010,1.45256615,87.219,87.203,1.43207859]
[1773140154906,1.45256615,87.219,87.198,11.46810252]
[1773140155117,1.45256615,87.219,87.199,1.43207859]
[1773140155999,1.45256615,87.222,87.201,1.43207859]
[1773140156602,1.45256615,87.219,87.201,1.43207859]
[1773140158195,1.45256615,87.217,87.181,1.43207859]
[1773140158399,1.45256615,87.199,87.182,1.43207859]
[1773140158606,1.45256615,87.199,87.177,12.90290685]
[1773140158790,1.45256615,87.199,87.178,1.43207859]
[1773140160412,1.45256615,87.197,87.179,1.43207859]
[1773140162007,1.45256615,87.197,87.175,1.43207859]
[1773140162400,1.45256615,87.199,87.177,1.43207859]
[1773140165321,4.04115415,87.21,87.181,1.50198834]
[1773140167315,1.21091463,87.209,87.183,1.50198834]
[1773140169217,1.21089607,87.199,87.174,12.97324678]
[1773140169810,1.21086264,87.197,87.174,1.50198834]
[1773140171003,4.04115415,87.19,87.174,1.50198834]
[1773140171203,1.21081426,87.194,87.174,1.50198834]
[1773140171701,1.21077684,87.187,87.161,1.50198834]
[1773140171901,11.46946827,87.188,87.15,4.04115415]
[1773140171902,1.21077684,87.179,87.163,1.50198834]
[1773140172524,1.20980878,87.187,87.163,1.50198834]
[1773140175628,12.67669001,87.186,87.163,1.50198834]
[1773140175819,1.20695864,87.185,87.163,1.50198834]
[1773140176129,1.20695864,87.185,87.165,1.50198834]
[1773140176308,11.46913922,87.191,87.165,1.50198834]
[1773140176741,1.20603419,87.189,87.159,1.50198834]
[1773140178528,1.20421777,87.187,87.161,1.50198834]
[1773140180421,1.20421777,87.187,87.163,1.50198834]
[1773140180614,12.67217734,87.186,87.163,1.50198834]
[1773140180815,1.20244597,87.185,87.163,1.50198834]
[1773140183735,1.20244597,87.185,87.165,1.50198834]
[1773140184822,11.46999449,87.184,87.165,1.50198834]
[1773140185017,1.19899858,87.184,87.165,1.50198834]
[1773140187518,11.47012605,87.183,87.165,1.50198834]
[1773140187719,1.19653693,87.182,87.165,1.50198834]
[1773140187923,11.47012605,87.183,87.157,1.50198834]
[1773140190532,11.46933672,87.189,87.158,11.47341609]
[1773140190836,12.66344225,87.189,87.159,1.50198834]
[1773140191029,1.19410553,87.188,87.159,1.50198834]
[1773140193134,11.46959982,87.187,87.161,1.50198834]
[1773140195041,12.65992044,87.187,87.161,1.50198834]
[1773140195548,1.18958558,87.186,87.163,1.39074823]
[1773140197739,1.18813908,87.184,87.163,1.39074823]
[1773140197933,11.46986293,87.185,87.163,1.39074823]
[1773140198236,1.18813908,87.179,87.156,1.39074823]
[1773140200237,12.65681654,87.178,87.158,1.39074823]
[1773140200440,1.18603263,87.177,87.158,1.39074823]
[1773140202633,11.47104707,87.176,87.158,1.39074823]
[1773140203345,28.67465733,87.185,87.16,1.39074823]
[1773140208149,29.85599678,87.185,87.16,1.39074823]
[1773140209536,1.18008946,87.182,87.16,1.39074823]
[1773140209935,1.18008946,87.179,87.16,1.39074823]
[1773140211650,11.47078391,87.178,87.16,1.39074823]
[1773140211853,12.64905228,87.178,87.16,1.39074823]
[1773140212661,1.1776863,87.177,87.16,1.39074823]
[1773140213851,1.1776863,87.177,87.154,1.41846261]
[1773140217259,1.17478489,87.175,87.154,1.41846261]
[1773140217965,1.17478489,87.169,87.143,1.41846261]
[1773140218563,1.17478489,87.169,87.144,1.41846261]
[1773140219639,1.17368226,87.167,87.144,1.41846261]
[1773140221062,11.47236307,87.166,87.144,1.41846261]
[1773140221261,1.17368226,87.167,87.146,1.41846261]
[1773140222266,11.4718439,87.17,87.146,1.41846261]
[1773140222663,1.17209121,87.169,87.146,1.41846261]
[1773140222964,15.51691051,87.17,87.146,1.41846261]
[1773140222965,11.4718439,87.17,87.146,1.41846261]
[1773140224668,1.17053565,87.169,87.146,1.41846261]
[1773140226462,4.04506661,87.17,87.141,11.47557138]
[1773140226463,1.16951823,87.167,87.141,11.47557138]
[1773140226666,1.16951823,87.167,87.12,0.2]
[1773140226667,1.47754881,87.159,87.126,11.47763009]
[1773140227454,1.47754881,87.159,87.126,40.17170533]
[1773140228066,1.47754881,87.159,87.13,4.04506661]
[1773140228671,1.47754881,87.159,87.133,1.40105171]
[1773140229960,1.47754881,87.158,87.133,1.40105171]
[1773140231551,1.47754881,87.156,87.135,1.40105171]
[1773140232662,1.47754881,87.169,87.141,1.40105171]
[1773140233784,1.47754881,87.174,87.142,11.47552271]
[1773140234086,1.47754881,87.174,87.151,1.40105171]
[1773140238382,1.47754881,87.169,87.151,1.40105171]
[1773140238560,1.47754881,87.169,87.151,0.40105171]
[1773140239384,1.47754881,87.169,87.14,4.04506661]
[1773140240482,1.47754881,87.169,87.142,11.47552271]
[1773140240784,1.47754881,87.169,87.143,1.40105171]
[1773140244767,1.47754881,87.169,87.145,1.40105171]
[1773140247580,1.47754881,87.169,87.146,11.47499598]
[1773140247886,1.47754881,87.169,87.147,1.40105171]
[1773140250695,1.47754881,87.169,87.149,1.40105171]
[1773140253688,1.47754881,87.169,87.15,11.4744693]
[1773140253875,1.47754881,87.169,87.151,1.41907013]
[1773140254393,1.44434119,87.174,87.151,1.41907013]
[1773140256705,1.44434119,87.174,87.152,11.47420598]
[1773140256877,1.44434119,87.174,87.153,1.41907013]
[1773140257397,3.69383402,87.197,87.148,1.41907013]
[1773140257398,1.44434119,87.169,87.148,1.41907013]
[1773140259805,1.44434119,87.169,87.149,11.47460097]
[1773140260308,1.44434119,87.169,87.149,12.8936711]
[1773140260801,1.44434119,87.169,87.15,1.41907013]
[1773140262398,1.44434119,87.169,87.152,1.41907013]
[1773140262591,1.44434119,87.176,87.152,1.41907013]
[1773140262794,12.91478754,87.181,87.152,1.41907013]
[1773140263096,1.44434119,87.18,87.152,1.41907013]
[1773140263600,1.44434119,87.179,87.152,1.41907013]
[1773140268786,1.44434119,87.177,87.154,1.41907013]
[1773140270401,12.96251076,87.176,87.156,1.37448977]
[1773140271309,1.49146369,87.176,87.156,1.37448977]
[1773140272710,1.49146369,87.176,87.157,11.47354773]
[1773140273007,1.49146369,87.176,87.158,1.37448977]
[1773140273309,1.49146369,87.174,87.158,1.37448977]
[1773140274207,1.49146369,87.174,87.153,12.84845342]
[1773140274708,1.49146369,87.174,87.154,1.37448977]
[1773140275810,11.47144184,87.173,87.154,1.37448977]
[1773140276109,1.49146369,87.172,87.154,1.37448977]
[1773140276605,1.49146369,87.172,87.142,1.37448977]
[1773140276793,1.49146369,87.169,87.142,1.37448977]
[1773140277714,1.49146369,87.169,87.143,11.47539102]
[1773140277892,1.49146369,87.169,87.144,1.37448977]
[1773140278612,11.47144184,87.173,87.144,1.37448977]
[1773140278912,1.49146369,87.173,87.146,1.37448977]
[1773140279121,1.49146369,87.173,87.151,1.37448977]
[1773140279614,11.47065233,87.179,87.151,1.37448977]
[1773140281613,1.49146369,87.18,87.152,11.47420598]
[1773140281816,1.49146369,87.18,87.153,1.37448977]
[1773140282516,1.49146369,87.186,87.161,1.37448977]
[1773140283602,1.37593535,87.169,87.146,1.41579235]
[1773140284414,1.37593535,87.181,87.151,1.41579235]
[1773140284618,1.37593535,87.189,87.161,1.41579235]
[1773140286795,1.37593535,87.189,87.163,1.41579235]
[1773140287618,1.37593535,87.187,87.163,1.41579235]
[1773140289711,1.37593535,87.187,87.164,11.47262631]
[1773140289910,1.37593535,87.187,87.165,1.41579235]
[1773140290111,1.37593535,87.185,87.165,1.41579235]
[1773140294022,11.46999449,87.184,87.165,1.41579235]
[1773140294222,11.46999449,87.184,87.155,28.68441839]
[1773140294223,1.37593535,87.183,87.161,1.41579235]
[1773140294424,1.37593535,87.183,87.163,1.41579235]
[1773140295928,1.37593535,87.183,87.164,11.47262631]
[1773140296929,1.37593535,87.181,87.16,12.88894517]
[1773140297228,1.37593535,87.179,87.16,11.47315282]
[1773140297611,1.37593535,87.179,87.157,1.41579235]
[1773140297832,1.37593535,87.179,87.158,1.41579235]
[1773140299828,1.37593535,87.179,87.16,1.41579235]
[1773140301441,1.37593535,87.179,87.161,11.47302119]
[1773140301727,1.37593535,87.179,87.161,12.88881354]
[1773140302128,12.84566672,87.186,87.162,1.41579235]
[1773140302310,1.37593535,87.185,87.162,1.41579235]
[1773140303420,1.37593535,87.185,87.163,11.47275793]
[1773140303620,1.37593535,87.185,87.164,1.41579235]
[1773140304530,1.37593535,87.189,87.164,1.41579235]
[1773140304737,1.37593535,87.199,87.164,1.41579235]
[1773140306628,1.37593535,87.197,87.166,1.41579235]
[1773140307539,1.37593535,87.195,87.168,1.41579235]
[1773140308635,1.37593535,87.193,87.17,1.41579235]
[1773140310742,11.4689421,87.192,87.171,11.47170503]
[1773140311141,1.37593535,87.191,87.171,12.88749738]
[1773140317949,1.37593535,87.191,87.172,1.45421684]
[1773140324864,1.37593535,87.191,87.135,9.5]
[1773140325159,1.37593535,87.191,87.12,0.2]
[1773140325160,1.43880949,87.149,87.125,1.45421684]
[1773140325332,3.69383402,87.177,87.127,1.45421684]
[1773140325532,1.43880949,87.169,87.131,1.45421684]
[1773140325756,4.04441839,87.16,87.131,1.45421684]
[1773140325931,1.43880949,87.159,87.131,1.45421684]
[1773140326447,1.43880949,87.157,87.133,1.45421684]
[1773140328431,1.43880949,87.157,87.134,11.4765763]
[1773140328634,1.43880949,87.157,87.135,1.45421684]
[1773140330853,1.43880949,87.157,87.137,1.42967997]
[1773140332156,4.04441839,87.16,87.137,1.42967997]
[1773140332962,11.47328445,87.159,87.137,1.42967997]
[1773140333177,4.04441839,87.16,87.137,1.42967997]
[1773140333465,4.04441839,87.16,87.12,0.2]
[1773140333466,5.54859437,87.16,87.139,1.42967997]
[1773140333973,1.50417598,87.159,87.139,1.42967997]
[1773140335770,1.50417598,87.158,87.139,1.42967997]
[1773140340172,3.69383402,87.183,87.14,1.42967997]
[1773140340350,1.50417598,87.169,87.14,1.42967997]
[1773140342071,4.04441839,87.16,87.14,1.42967997]
[1773140342276,3.69383402,87.182,87.142,1.42967997]
[1773140342481,4.04441839,87.17,87.142,1.42967997]
[1773140343769,4.04441839,87.17,87.143,11.47539102]
[1773140343971,4.04441839,87.17,87.144,1.47208514]
[1773140344473,1.38786241,87.173,87.144,1.47208514]
[1773140345583,4.04441839,87.17,87.144,1.47208514]
[1773140346679,4.04441839,87.17,87.146,1.47208514]
[1773140349781,4.04441839,87.17,87.147,11.4748643]
[1773140350081,4.04441839,87.17,87.148,1.47208514]
[1773140351882,1.38786241,87.169,87.148,1.47208514]
[1773140352179,1.38786241,87.169,87.15,1.47208514]
[1773140354979,1.38786241,87.169,87.151,1.47208514]
[1773140356862,1.38786241,87.169,87.152,1.47208514]
[1773140357671,1.38786241,87.159,87.125,1.47208514]
[1773140357990,1.38786241,87.149,87.125,1.47208514]
[1773140358162,1.38786241,87.159,87.13,4.04441839]
[1773140358362,1.38786241,87.159,87.131,1.47208514]
[1773140361888,1.38786241,87.159,87.133,1.47208514]
[1773140364208,1.38786241,87.159,87.135,1.47208514]
[1773140366494,1.38786241,87.159,87.137,1.47208514]
[1773140366696,1.38786241,87.157,87.137,1.47208514]
[1773140368494,1.38786241,87.157,87.139,1.47208514]
[1773140372275,1.38786241,87.157,87.141,1.47208514]
[1773140373796,1.38786241,87.157,87.142,11.47552271]
[1773140373998,1.38786241,87.157,87.143,1.40363236]
[1773140388404,1.47677178,87.163,87.143,1.40363236]
[1773140391915,40.15198869,87.169,87.143,1.40363236]
[1773140391916,1.47677178,87.161,87.143,1.40363236]
[1773140393038,4.04714002,87.17,87.145,1.47939334]
[1773140393317,1.47677178,87.172,87.145,1.47939334]
[1773140393992,11.47170503,87.171,87.145,1.47939334]
[1773140394193,1.47677178,87.17,87.145,1.47939334]
[1773140394493,1.47677178,87.17,87.147,1.47939334]
[1773140395832,4.04714002,87.17,87.139,1.47939334]
[1773140396111,1.47677178,87.167,87.14,1.47939334]
[1773140400011,1.47677178,87.165,87.14,1.47939334]
[1773140400614,1.47677178,87.165,87.142,1.47939334]
[1773140401313,4.04714002,87.16,87.142,1.47939334]
[1773140401518,1.47677178,87.159,87.142,1.47939334]
[1773140401798,1.47677178,87.163,87.142,1.47939334]
[1773140402918,1.47677178,87.161,87.142,1.47939334]
[1773140406320,11.47315282,87.16,87.142,1.47939334]
[1773140406505,12.96063776,87.16,87.142,1.47939334]
[1773140408832,1.48748494,87.159,87.142,1.47939334]
[1773140415030,11.4728443,87.163,87.144,1.41476725]
[1773140415332,1.48748494,87.162,87.144,1.41476725]
[1773140416107,1.48748494,87.159,87.14,1.41476725]
[1773140417027,1.48748494,87.147,87.124,1.41476725]
[1773140419332,1.48748494,87.145,87.124,1.41476725]
[1773140419533,1.48748494,87.145,87.125,11.47776183]
[1773140419839,1.48748494,87.145,87.126,1.41476725]
[1773140420536,4.04714002,87.15,87.126,1.41476725]
[1773140420537,1.48748494,87.149,87.126,1.41476725]
[1773140421836,1.48748494,87.147,87.127,11.47749836]
[1773140422022,1.48748494,87.147,87.128,1.41476725]
[1773140424145,1.48748494,87.151,87.13,1.41476725]
[1773140424640,4.04714002,87.15,87.13,1.41476725]
[1773140424836,5.53462496,87.15,87.13,1.41476725]
[1773140425139,1.48748494,87.149,87.13,1.41476725]
[1773140425554,1.48748494,87.148,87.13,1.41476725]
[1773140425843,1.48748494,87.146,87.13,1.41476725]
[1773140428339,1.48748494,87.146,87.127,11.47744778]
[1773140428539,1.48748494,87.146,87.128,1.41476725]
[1773140430650,1.48748494,87.146,87.128,0.43759012]
[1773140432044,11.47463058,87.149,87.129,11.4772349]
[1773140432246,1.48748494,87.148,87.129,11.4772349]
[1773140432643,1.48748494,87.148,87.13,1.41476725]
[1773140433646,1.48748494,87.148,87.12,0.2]
[1773140433851,1.40824186,87.129,87.114,1.43139886]
[1773140436151,4.04851116,87.13,87.11,0.2]
[1773140436152,1.40824186,87.127,87.11,0.2]
[1773140436650,1.40824186,87.119,87.1,0.2]
[1773140437933,1.40824186,87.117,87.1,0.2]
[1773140439962,1.40824186,87.115,87.1,0.2]
[1773140443359,11.47847236,87.12,87.102,1.43139886]
[1773140443657,11.4768874,87.132,87.111,1.43139886]
[1773140443835,28.68717496,87.147,87.111,1.43139886]
[1773140444035,4.04851116,87.14,87.111,1.43139886]
[1773140444760,11.47591778,87.139,87.111,1.43139886]
[1773140444942,4.04851116,87.13,87.111,1.43139886]
[1773140445448,40.16571224,87.139,87.111,1.43139886]